[Event "Titled Tuesday Blitz January 17 Late 2023"]
[White "Smith, Garrett L"]
[Black "Michalski, Olaf"]
[WhiteFideId "2024829"]
[BlackFideId "1106740"]
[WhiteElo "2047"]
[BlackElo "2273"]
[Result "0-1"]
[Round "08"]
[TimeControl "180+2"]
[Date "2023.01.17"]
[WhiteClock "0:01:07"]
[BlackClock "0:00:08"]

1. e4 {[%clk 0:03:00]}  c5 {[%clk 0:02:59]} 2. a3 {[%clk 0:03:01]}  e6 {[%clk 0:02:43]} 3. b4 {[%clk 0:03:01]}  cxb4 {[%clk 0:02:43]} 4. axb4 {[%clk 0:03:01]}  Bxb4 {[%clk 0:02:43]} 5. Bb2 {[%clk 0:03:02]}  Nf6 {[%clk 0:02:36]} 6. e5 {[%clk 0:03:02]}  Nd5 {[%clk 0:02:36]} 7. c4 {[%clk 0:03:02]}  Ne7 {[%clk 0:02:34]} 8. Qg4 {[%clk 0:03:01]}  Nf5 {[%clk 0:02:29]} 9. Bd3 {[%clk 0:02:52]}  h5 {[%clk 0:01:57]} 10. Qf4 {[%clk 0:02:44]}  Qh4 {[%clk 0:01:49]} 11. Qxh4 {[%clk 0:02:33]}  Nxh4 {[%clk 0:01:48]} 12. Be4 {[%clk 0:02:34]}  g6 {[%clk 0:01:30]} 13. Nc3 {[%clk 0:02:31]}  Bxc3 {[%clk 0:01:20]} 14. Bxc3 {[%clk 0:02:29]}  Nc6 {[%clk 0:01:16]} 15. d4 {[%clk 0:02:18]}  O-O {[%clk 0:01:01]} 16. d5 {[%clk 0:02:11]}  exd5 {[%clk 0:01:00]} 17. cxd5 {[%clk 0:02:10]}  Nxe5 {[%clk 0:00:51]} 18. Bxe5 {[%clk 0:02:11]}  Re8 {[%clk 0:00:51]} 19. f4 {[%clk 0:02:00]}  d6 {[%clk 0:00:46]} 20. g3 {[%clk 0:01:46]}  dxe5 {[%clk 0:00:41]} 21. gxh4 {[%clk 0:01:26]}  exf4 {[%clk 0:00:40]} 22. Kf2 {[%clk 0:01:25]}  Rxe4 {[%clk 0:00:39]} 23. Ne2 {[%clk 0:01:24]}  Bg4 {[%clk 0:00:33]} 24. Nc3 {[%clk 0:01:23]}  Re3 {[%clk 0:00:31]} 25. Nb5 {[%clk 0:01:21]}  Re2+ {[%clk 0:00:19]} 26. Kf1 {[%clk 0:01:21]}  Rae8 {[%clk 0:00:19]} 27. h3 {[%clk 0:01:20]}  Bf3 {[%clk 0:00:15]} 28. Rg1 {[%clk 0:01:21]}  Bxd5 {[%clk 0:00:14]} 29. Nc3 {[%clk 0:01:19]}  Rd2 {[%clk 0:00:12]} 30. Rg5 {[%clk 0:01:11]}  Bc4+ {[%clk 0:00:11]} 31. Kg1 {[%clk 0:01:12]}  f3 {[%clk 0:00:09]} 32. Ra4 {[%clk 0:01:07]}  f2+ {[%clk 0:00:08]} 0-1


[Site "https://www.chess.com"]

[Event "Titled Tuesday Blitz January 17 Late 2023"]
[White "Souza, Gustavo Horokoski De"]
[Black "Rosh Jain"]
[WhiteFideId "2146584"]
[BlackFideId "25789465"]
[WhiteElo "1943"]
[BlackElo "2248"]
[Result "0-1"]
[Round "08"]
[TimeControl "180+2"]
[Date "2023.01.17"]
[WhiteClock "0:00:13"]
[BlackClock "0:00:55"]

1. d4 {[%clk 0:02:55]}  d5 {[%clk 0:02:58]} 2. c4 {[%clk 0:02:55]}  e6 {[%clk 0:02:57]} 3. Nc3 {[%clk 0:02:54]}  Nf6 {[%clk 0:02:57]} 4. cxd5 {[%clk 0:02:55]}  exd5 {[%clk 0:02:56]} 5. Bg5 {[%clk 0:02:55]}  Be7 {[%clk 0:02:56]} 6. e3 {[%clk 0:02:55]}  h6 {[%clk 0:02:55]} 7. Bh4 {[%clk 0:02:54]}  O-O {[%clk 0:02:54]} 8. Bd3 {[%clk 0:02:54]}  Re8 {[%clk 0:02:48]} 9. Nge2 {[%clk 0:02:53]}  Nbd7 {[%clk 0:02:47]} 10. O-O {[%clk 0:02:53]}  Nf8 {[%clk 0:02:47]} 11. Qc2 {[%clk 0:02:51]}  c6 {[%clk 0:02:46]} 12. f3 {[%clk 0:02:49]}  Be6 {[%clk 0:02:39]} 13. Rad1 {[%clk 0:02:45]}  Rc8 {[%clk 0:02:36]} 14. Na4 {[%clk 0:02:22]}  N6d7 {[%clk 0:02:22]} 15. Bxe7 {[%clk 0:02:18]}  Qxe7 {[%clk 0:02:23]} 16. e4 {[%clk 0:02:08]}  c5 {[%clk 0:02:19]} 17. dxc5 {[%clk 0:01:56]}  Nxc5 {[%clk 0:02:11]} 18. Nxc5 {[%clk 0:01:55]}  Rxc5 {[%clk 0:02:11]} 19. Qa4 {[%clk 0:01:50]}  Rec8 {[%clk 0:01:54]} 20. Nc3 {[%clk 0:01:43]}  dxe4 {[%clk 0:01:45]} 21. Bxe4 {[%clk 0:01:35]}  a6 {[%clk 0:01:40]} 22. b3 {[%clk 0:01:31]}  Rxc3 {[%clk 0:01:36]} 23. Kh1 {[%clk 0:01:16]}  Qc7 {[%clk 0:01:26]} 24. Qd4 {[%clk 0:00:58]}  Nd7 {[%clk 0:01:20]} 25. Bd3 {[%clk 0:00:44]}  Rc5 {[%clk 0:01:09]} 26. Rfe1 {[%clk 0:00:33]}  Rh5 {[%clk 0:01:06]} 27. f4 {[%clk 0:00:21]}  Nf6 {[%clk 0:00:57]} 28. Rc1 {[%clk 0:00:13]}  Qxc1 {[%clk 0:00:55]} 0-1


[Site "https://www.chess.com"]

[Event "Titled Tuesday Blitz January 17 Late 2023"]
[White "Stead, Kerry"]
[Black "Fajdetic, Hrvoje"]
[WhiteFideId "3202577"]
[BlackFideId "14501945"]
[WhiteElo "1908"]
[BlackElo "2151"]
[Result "1/2-1/2"]
[Round "08"]
[TimeControl "180+2"]
[Date "2023.01.17"]
[WhiteClock "0:00:23"]
[BlackClock "0:00:11"]

1. e4 {[%clk 0:02:52]}  c5 {[%clk 0:02:59]} 2. c3 {[%clk 0:02:50]}  d5 {[%clk 0:02:58]} 3. e5 {[%clk 0:02:49]}  Bf5 {[%clk 0:02:56]} 4. d4 {[%clk 0:02:48]}  e6 {[%clk 0:02:56]} 5. h4 {[%clk 0:02:45]}  h6 {[%clk 0:02:55]} 6. Bd3 {[%clk 0:02:42]}  Bxd3 {[%clk 0:02:51]} 7. Qxd3 {[%clk 0:02:43]}  Nc6 {[%clk 0:02:49]} 8. Be3 {[%clk 0:02:42]}  Qb6 {[%clk 0:02:44]} 9. Qd2 {[%clk 0:02:34]}  Rc8 {[%clk 0:02:31]} 10. Ne2 {[%clk 0:02:31]}  Na5 {[%clk 0:02:25]} 11. b3 {[%clk 0:02:16]}  Nc6 {[%clk 0:02:16]} 12. f4 {[%clk 0:02:13]}  cxd4 {[%clk 0:02:12]} 13. Nxd4 {[%clk 0:02:11]}  Nxd4 {[%clk 0:02:01]} 14. Bxd4 {[%clk 0:02:10]}  Bc5 {[%clk 0:02:00]} 15. O-O {[%clk 0:02:10]}  Ne7 {[%clk 0:01:58]} 16. Kh1 {[%clk 0:02:02]}  Nf5 {[%clk 0:01:57]} 17. Bxc5 {[%clk 0:02:00]}  Qxc5 {[%clk 0:01:56]} 18. Qe1 {[%clk 0:02:00]}  Qe3 {[%clk 0:01:37]} 19. Qxe3 {[%clk 0:01:43]}  Nxe3 {[%clk 0:01:38]} 20. Rc1 {[%clk 0:01:42]}  Nf5 {[%clk 0:01:30]} 21. Nd2 {[%clk 0:01:38]}  Nxh4 {[%clk 0:01:26]} 22. c4 {[%clk 0:01:30]}  dxc4 {[%clk 0:01:22]} 23. Nxc4 {[%clk 0:01:22]}  Nf5 {[%clk 0:01:11]} 24. g4 {[%clk 0:01:19]}  b5 {[%clk 0:01:10]} 25. gxf5 {[%clk 0:01:16]}  bxc4 {[%clk 0:01:10]} 26. fxe6 {[%clk 0:01:16]}  fxe6 {[%clk 0:01:09]} 27. Rxc4 {[%clk 0:01:15]}  Rxc4 {[%clk 0:01:08]} 28. bxc4 {[%clk 0:01:15]}  Kf7 {[%clk 0:00:59]} 29. Kg2 {[%clk 0:01:12]}  Rc8 {[%clk 0:00:53]} 30. Rc1 {[%clk 0:01:10]}  Rc5 {[%clk 0:00:47]} 31. Kf3 {[%clk 0:01:09]}  Kg6 {[%clk 0:00:44]} 32. Ke4 {[%clk 0:01:08]}  h5 {[%clk 0:00:37]} 33. Rg1+ {[%clk 0:00:57]}  Kh6 {[%clk 0:00:36]} 34. Kd4 {[%clk 0:00:56]}  Rc8 {[%clk 0:00:27]} 35. c5 {[%clk 0:00:45]}  g6 {[%clk 0:00:16]} 36. Rc1 {[%clk 0:00:39]}  h4 {[%clk 0:00:15]} 37. Rg1 {[%clk 0:00:37]}  Kh5 {[%clk 0:00:13]} 38. Rg5+ {[%clk 0:00:37]}  Kh6 {[%clk 0:00:12]} 39. Kc4 {[%clk 0:00:37]}  a6 {[%clk 0:00:13]} 40. a4 {[%clk 0:00:30]}  Rc7 {[%clk 0:00:12]} 41. Kd4 {[%clk 0:00:30]}  Rc6 {[%clk 0:00:12]} 42. Kc4 {[%clk 0:00:29]}  Rc7 {[%clk 0:00:13]} 43. Rg1 {[%clk 0:00:28]}  Kh5 {[%clk 0:00:11]} 44. Kd4 {[%clk 0:00:27]}  Rd7+ {[%clk 0:00:10]} 45. Ke4 {[%clk 0:00:27]}  Rc7 {[%clk 0:00:10]} 46. Rc1 {[%clk 0:00:25]}  Kg4 {[%clk 0:00:10]} 47. Rg1+ {[%clk 0:00:24]}  Kh5 {[%clk 0:00:11]} 48. Rc1 {[%clk 0:00:24]}  Kg4 {[%clk 0:00:11]} 49. Rg1+ {[%clk 0:00:23]}  Kh5 {[%clk 0:00:11]} 1/2-1/2


[Site "https://www.chess.com"]

[Event "Titled Tuesday Blitz January 17 Late 2023"]
[White "Duda, Jan-Krzysztof"]
[Black "Tang, Andrew"]
[WhiteFideId "1170546"]
[BlackFideId "2059630"]
[WhiteElo "2724"]
[BlackElo "2523"]
[Result "1-0"]
[Round "09"]
[TimeControl "180+2"]
[Date "2023.01.17"]
[WhiteClock "0:00:07"]
[BlackClock "0:00:04"]

1. d4 {[%clk 0:03:00]}  d5 {[%clk 0:02:58]} 2. Nf3 {[%clk 0:03:00]}  Nf6 {[%clk 0:02:58]} 3. Bg5 {[%clk 0:02:59]}  e6 {[%clk 0:02:46]} 4. Nbd2 {[%clk 0:02:59]}  Nbd7 {[%clk 0:02:37]} 5. e3 {[%clk 0:02:57]}  Bd6 {[%clk 0:02:27]} 6. Bd3 {[%clk 0:02:52]}  h6 {[%clk 0:02:26]} 7. Bh4 {[%clk 0:02:50]}  O-O {[%clk 0:01:38]} 8. c4 {[%clk 0:02:50]}  b6 {[%clk 0:01:37]} 9. cxd5 {[%clk 0:02:44]}  exd5 {[%clk 0:01:38]} 10. g4 {[%clk 0:02:28]}  g5 {[%clk 0:01:23]} 11. Nxg5 {[%clk 0:02:14]}  hxg5 {[%clk 0:01:23]} 12. Bxg5 {[%clk 0:02:14]}  Be7 {[%clk 0:01:09]} 13. Qf3 {[%clk 0:02:11]}  Re8 {[%clk 0:01:06]} 14. Rg1 {[%clk 0:02:02]}  Ne4 {[%clk 0:00:53]} 15. Nxe4 {[%clk 0:01:37]}  Bxg5 {[%clk 0:00:46]} 16. Ng3 {[%clk 0:01:10]}  Nf6 {[%clk 0:00:32]} 17. Nf5 {[%clk 0:01:05]}  Ne4 {[%clk 0:00:30]} 18. h4 {[%clk 0:01:01]}  Bf6 {[%clk 0:00:16]} 19. Nh6+ {[%clk 0:00:58]}  Kf8 {[%clk 0:00:10]} 20. g5 {[%clk 0:00:59]}  Qd6 {[%clk 0:00:04]} 21. Bxe4 {[%clk 0:00:48]}  Rxe4 {[%clk 0:00:03]} 22. Qxf6 {[%clk 0:00:36]}  Qb4+ {[%clk 0:00:02]} 23. Ke2 {[%clk 0:00:27]}  Be6 {[%clk 0:00:02]} 24. g6 {[%clk 0:00:26]}  Ke8 {[%clk 0:00:03]} 25. g7 {[%clk 0:00:25]}  Kd7 {[%clk 0:00:03]} 26. g8=Q {[%clk 0:00:22]}  Rxg8 {[%clk 0:00:03]} 27. Nxg8 {[%clk 0:00:22]}  Qxb2+ {[%clk 0:00:03]} 28. Kf3 {[%clk 0:00:23]}  c5 {[%clk 0:00:02]} 29. h5 {[%clk 0:00:18]}  Qc2 {[%clk 0:00:02]} 30. h6 {[%clk 0:00:18]}  Rxd4 {[%clk 0:00:01]} 31. Qe5 {[%clk 0:00:09]}  Re4 {[%clk 0:00:02]} 32. Nf6+ {[%clk 0:00:09]}  Kc6 {[%clk 0:00:02]} 33. Nxe4 {[%clk 0:00:10]}  dxe4+ {[%clk 0:00:03]} 34. Kg3 {[%clk 0:00:09]}  Qe2 {[%clk 0:00:03]} 35. Qf4 {[%clk 0:00:08]}  Qh5 {[%clk 0:00:04]} 36. Qh4 {[%clk 0:00:07]}  Qf3+ {[%clk 0:00:04]} 37. Kh2 {[%clk 0:00:07]} 1-0


[Site "https://www.chess.com"]

[Event "Titled Tuesday Blitz January 17 Late 2023"]
[White "Andreikin, Dmitry"]
[Black "Abdrlauf, Elham"]
[WhiteFideId "4158814"]
[BlackFideId "1533533"]
[WhiteElo "2729"]
[BlackElo "2518"]
[Result "1-0"]
[Round "09"]
[TimeControl "180+2"]
[Date "2023.01.17"]
[WhiteClock "0:00:14"]
[BlackClock "0:00:01"]

1. Nf3 {[%clk 0:03:00]}  d5 {[%clk 0:02:48]} 2. d4 {[%clk 0:03:00]}  Nf6 {[%clk 0:02:48]} 3. c4 {[%clk 0:03:00]}  e6 {[%clk 0:02:47]} 4. g3 {[%clk 0:03:00]}  dxc4 {[%clk 0:02:45]} 5. Bg2 {[%clk 0:02:59]}  c5 {[%clk 0:02:45]} 6. O-O {[%clk 0:02:58]}  Nc6 {[%clk 0:02:45]} 7. dxc5 {[%clk 0:02:58]}  Qxd1 {[%clk 0:02:44]} 8. Rxd1 {[%clk 0:02:59]}  Bxc5 {[%clk 0:02:44]} 9. Nfd2 {[%clk 0:03:00]}  O-O {[%clk 0:02:30]} 10. Nxc4 {[%clk 0:02:59]}  Bd7 {[%clk 0:02:21]} 11. Nc3 {[%clk 0:02:56]}  Rfd8 {[%clk 0:02:14]} 12. Bg5 {[%clk 0:02:41]}  Be8 {[%clk 0:02:01]} 13. Nb5 {[%clk 0:02:24]}  Rxd1+ {[%clk 0:01:24]} 14. Rxd1 {[%clk 0:02:24]}  Rd8 {[%clk 0:01:24]} 15. Rxd8 {[%clk 0:02:07]}  Nxd8 {[%clk 0:01:25]} 16. Nbd6 {[%clk 0:02:03]}  Bc6 {[%clk 0:01:01]} 17. Bxc6 {[%clk 0:02:02]}  bxc6 {[%clk 0:01:02]} 18. Kg2 {[%clk 0:01:28]}  Kf8 {[%clk 0:00:57]} 19. Kf3 {[%clk 0:01:08]}  h6 {[%clk 0:00:49]} 20. Bxf6 {[%clk 0:00:49]}  gxf6 {[%clk 0:00:49]} 21. Ne4 {[%clk 0:00:46]}  Be7 {[%clk 0:00:46]} 22. g4 {[%clk 0:00:47]}  Nb7 {[%clk 0:00:44]} 23. b3 {[%clk 0:00:46]}  Ke8 {[%clk 0:00:39]} 24. h4 {[%clk 0:00:36]}  f5 {[%clk 0:00:22]} 25. gxf5 {[%clk 0:00:37]}  Bxh4 {[%clk 0:00:22]} 26. f6 {[%clk 0:00:28]}  Bg5 {[%clk 0:00:03]} 27. e3 {[%clk 0:00:23]}  Kd7 {[%clk 0:00:01]} 28. Kg4 {[%clk 0:00:19]}  e5 {[%clk 0:00:02]} 29. f4 {[%clk 0:00:18]}  exf4 {[%clk 0:00:01]} 30. exf4 {[%clk 0:00:19]}  Ke6 {[%clk 0:00:01]} 31. fxg5 {[%clk 0:00:18]}  hxg5 {[%clk 0:00:02]} 32. Kxg5 {[%clk 0:00:17]}  Kd5 {[%clk 0:00:02]} 33. Kf5 {[%clk 0:00:17]}  Kd4 {[%clk 0:00:01]} 34. Ng5 {[%clk 0:00:17]}  Nd8 {[%clk 0:00:01]} 35. Ne5 {[%clk 0:00:17]}  Kc3 {[%clk 0:00:01]} 36. Ngxf7 {[%clk 0:00:17]}  Nb7 {[%clk 0:00:02]} 37. Nxc6 {[%clk 0:00:17]}  Kb2 {[%clk 0:00:02]} 38. Ncd8 {[%clk 0:00:14]}  Nc5 {[%clk 0:00:01]} 39. Ne5 {[%clk 0:00:14]} 1-0


[Site "https://www.chess.com"]

[Event "Titled Tuesday Blitz January 17 Late 2023"]
[White "Nakamura, Hikaru"]
[Black "Esipenko, Andrey"]
[WhiteFideId "2016192"]
[BlackFideId "24175439"]
[WhiteElo "2775"]
[BlackElo "2679"]
[Result "1-0"]
[Round "09"]
[TimeControl "180+2"]
[Date "2023.01.17"]
[WhiteClock "0:00:10"]
[BlackClock "0:00:01"]

1. d4 {[%clk 0:03:00]}  Nf6 {[%clk 0:02:59]} 2. Bg5 {[%clk 0:03:00]}  d5 {[%clk 0:02:59]} 3. e3 {[%clk 0:02:58]}  c5 {[%clk 0:02:59]} 4. Nd2 {[%clk 0:02:57]}  Nc6 {[%clk 0:02:58]} 5. Ngf3 {[%clk 0:02:56]}  cxd4 {[%clk 0:02:52]} 6. exd4 {[%clk 0:02:55]}  Qb6 {[%clk 0:02:52]} 7. Nb3 {[%clk 0:02:55]}  Bf5 {[%clk 0:02:51]} 8. c3 {[%clk 0:02:53]}  e6 {[%clk 0:02:51]} 9. Be2 {[%clk 0:02:51]}  Bd6 {[%clk 0:02:50]} 10. a4 {[%clk 0:02:50]}  Ne4 {[%clk 0:02:48]} 11. Be3 {[%clk 0:02:50]}  h6 {[%clk 0:02:46]} 12. a5 {[%clk 0:02:45]}  Qc7 {[%clk 0:02:46]} 13. a6 {[%clk 0:02:39]}  O-O {[%clk 0:02:45]} 14. axb7 {[%clk 0:02:39]}  Qxb7 {[%clk 0:02:44]} 15. Ra2 {[%clk 0:02:39]}  a5 {[%clk 0:02:41]} 16. Nbd2 {[%clk 0:02:38]}  a4 {[%clk 0:02:32]} 17. Nxe4 {[%clk 0:02:35]}  Bxe4 {[%clk 0:02:31]} 18. O-O {[%clk 0:02:34]}  Rfb8 {[%clk 0:02:28]} 19. Nd2 {[%clk 0:02:23]}  Bg6 {[%clk 0:02:26]} 20. Qa1 {[%clk 0:02:18]}  Bc2 {[%clk 0:02:02]} 21. Bd1 {[%clk 0:02:02]}  Bxd1 {[%clk 0:01:58]} 22. Qxd1 {[%clk 0:01:55]}  Qb5 {[%clk 0:01:54]} 23. Qc2 {[%clk 0:01:50]}  Rc8 {[%clk 0:01:54]} 24. Qd1 {[%clk 0:01:49]}  Ne7 {[%clk 0:01:47]} 25. Nb1 {[%clk 0:01:08]}  Nf5 {[%clk 0:01:41]} 26. Bd2 {[%clk 0:01:08]}  Bf8 {[%clk 0:01:35]} 27. Re1 {[%clk 0:01:01]}  Nd6 {[%clk 0:01:31]} 28. Na3 {[%clk 0:01:01]}  Qb3 {[%clk 0:01:24]} 29. Qa1 {[%clk 0:01:01]}  Ne4 {[%clk 0:01:21]} 30. Bf4 {[%clk 0:00:57]}  Ra7 {[%clk 0:01:17]} 31. Nb1 {[%clk 0:00:47]}  Rb7 {[%clk 0:01:12]} 32. f3 {[%clk 0:00:37]}  Nd6 {[%clk 0:01:10]} 33. Nd2 {[%clk 0:00:37]}  Qb5 {[%clk 0:00:57]} 34. Qc1 {[%clk 0:00:35]}  Nc4 {[%clk 0:00:53]} 35. Nxc4 {[%clk 0:00:35]}  Qxc4 {[%clk 0:00:54]} 36. Qa1 {[%clk 0:00:34]}  Be7 {[%clk 0:00:44]} 37. Rxa4 {[%clk 0:00:31]}  Qb3 {[%clk 0:00:42]} 38. Ra2 {[%clk 0:00:25]}  Qc2 {[%clk 0:00:40]} 39. Qc1 {[%clk 0:00:22]}  Qb3 {[%clk 0:00:40]} 40. Qa1 {[%clk 0:00:22]}  Qc2 {[%clk 0:00:40]} 41. Bc1 {[%clk 0:00:20]}  Bh4 {[%clk 0:00:40]} 42. Rf1 {[%clk 0:00:19]}  Rbb8 {[%clk 0:00:22]} 43. Bf4 {[%clk 0:00:18]}  Rb6 {[%clk 0:00:18]} 44. Qd1 {[%clk 0:00:18]}  Qf5 {[%clk 0:00:14]} 45. Bc1 {[%clk 0:00:18]}  Qb1 {[%clk 0:00:13]} 46. Ra7 {[%clk 0:00:16]}  Bf6 {[%clk 0:00:14]} 47. Qe2 {[%clk 0:00:16]}  Bxd4+ {[%clk 0:00:10]} 48. Kh1 {[%clk 0:00:13]}  Rbb8 {[%clk 0:00:05]} 49. Bf4 {[%clk 0:00:08]}  Qxf1+ {[%clk 0:00:01]} 50. Qxf1 {[%clk 0:00:08]}  Bxa7 {[%clk 0:00:01]} 51. Bxb8 {[%clk 0:00:09]}  Rxb8 {[%clk 0:00:01]} 52. b4 {[%clk 0:00:06]}  Be3 {[%clk 0:00:01]} 53. Qd3 {[%clk 0:00:06]}  Bg5 {[%clk 0:00:01]} 54. b5 {[%clk 0:00:07]}  Bf6 {[%clk 0:00:01]} 55. g3 {[%clk 0:00:07]}  Rc8 {[%clk 0:00:01]} 56. b6 {[%clk 0:00:08]}  Rb8 {[%clk 0:00:02]} 57. Qb5 {[%clk 0:00:08]}  Bxc3 {[%clk 0:00:02]} 58. b7 {[%clk 0:00:08]}  Be5 {[%clk 0:00:02]} 59. Qc6 {[%clk 0:00:08]}  g5 {[%clk 0:00:02]} 60. Kg2 {[%clk 0:00:08]}  Kg7 {[%clk 0:00:03]} 61. Qc8 {[%clk 0:00:09]}  Kf6 {[%clk 0:00:03]} 62. Kf2 {[%clk 0:00:08]}  Bd6 {[%clk 0:00:02]} 63. Qd7 {[%clk 0:00:08]}  Be5 {[%clk 0:00:02]} 64. Ke3 {[%clk 0:00:09]}  Kg6 {[%clk 0:00:02]} 65. f4 {[%clk 0:00:09]}  gxf4+ {[%clk 0:00:02]} 66. gxf4 {[%clk 0:00:10]}  Bf6 {[%clk 0:00:01]} 67. Qc8 {[%clk 0:00:10]} 1-0


[Site "https://www.chess.com"]

[Event "Titled Tuesday Blitz January 17 Late 2023"]
[White "Zierk, Steven"]
[Black "Artemiev, Vladislav"]
[WhiteFideId "2034255"]
[BlackFideId "24101605"]
[WhiteElo "2488"]
[BlackElo "2701"]
[Result "1/2-1/2"]
[Round "09"]
[TimeControl "180+2"]
[Date "2023.01.17"]
[WhiteClock "0:00:04"]
[BlackClock "0:00:05"]

1. e4 {[%clk 0:03:00]}  e5 {[%clk 0:02:59]} 2. Nf3 {[%clk 0:03:01]}  Nc6 {[%clk 0:02:59]} 3. Bc4 {[%clk 0:03:00]}  Nf6 {[%clk 0:02:59]} 4. d4 {[%clk 0:02:58]}  exd4 {[%clk 0:02:51]} 5. e5 {[%clk 0:02:58]}  Ng4 {[%clk 0:02:43]} 6. O-O {[%clk 0:02:55]}  Be7 {[%clk 0:02:43]} 7. Re1 {[%clk 0:02:53]}  d6 {[%clk 0:02:39]} 8. exd6 {[%clk 0:02:46]}  cxd6 {[%clk 0:02:39]} 9. Nxd4 {[%clk 0:02:41]}  O-O {[%clk 0:02:37]} 10. Nc3 {[%clk 0:02:33]}  Bh4 {[%clk 0:02:34]} 11. g3 {[%clk 0:02:27]}  Bf6 {[%clk 0:02:31]} 12. Ndb5 {[%clk 0:02:13]}  Nxf2 {[%clk 0:02:19]} 13. Kxf2 {[%clk 0:02:10]}  a6 {[%clk 0:02:20]} 14. Na3 {[%clk 0:02:03]}  b5 {[%clk 0:02:11]} 15. Bd5 {[%clk 0:02:02]}  b4 {[%clk 0:02:11]} 16. Bxc6 {[%clk 0:01:55]}  Qb6+ {[%clk 0:01:53]} 17. Be3 {[%clk 0:01:47]}  Qxc6 {[%clk 0:01:53]} 18. Nd5 {[%clk 0:01:40]}  bxa3 {[%clk 0:01:43]} 19. Nxf6+ {[%clk 0:01:37]}  gxf6 {[%clk 0:01:43]} 20. bxa3 {[%clk 0:01:27]}  Re8 {[%clk 0:01:09]} 21. Qf3 {[%clk 0:01:09]}  Qxc2+ {[%clk 0:00:51]} 22. Re2 {[%clk 0:01:09]}  Qf5 {[%clk 0:00:49]} 23. Qxf5 {[%clk 0:00:54]}  Bxf5 {[%clk 0:00:50]} 24. Rd2 {[%clk 0:00:54]}  Rac8 {[%clk 0:00:43]} 25. Rxd6 {[%clk 0:00:52]}  Rc3 {[%clk 0:00:34]} 26. Re1 {[%clk 0:00:44]}  Rxa3 {[%clk 0:00:24]} 27. Rd2 {[%clk 0:00:24]}  h5 {[%clk 0:00:24]} 28. Bd4 {[%clk 0:00:21]}  Rd8 {[%clk 0:00:21]} 29. Ree2 {[%clk 0:00:15]}  Rd6 {[%clk 0:00:08]} 30. Bc5 {[%clk 0:00:10]}  Rxd2 {[%clk 0:00:09]} 31. Rxd2 {[%clk 0:00:11]}  Ra4 {[%clk 0:00:08]} 32. a3 {[%clk 0:00:10]}  Rc4 {[%clk 0:00:08]} 33. Bd4 {[%clk 0:00:09]}  Kg7 {[%clk 0:00:08]} 34. Ke3 {[%clk 0:00:09]}  Kg6 {[%clk 0:00:07]} 35. Rb2 {[%clk 0:00:08]}  Be6 {[%clk 0:00:04]} 36. Rb6 {[%clk 0:00:07]}  Ra4 {[%clk 0:00:03]} 37. Bb2 {[%clk 0:00:07]}  Ra5 {[%clk 0:00:03]} 38. Rb4 {[%clk 0:00:08]}  Rc5 {[%clk 0:00:03]} 39. Rf4 {[%clk 0:00:08]}  f5 {[%clk 0:00:03]} 40. Rb4 {[%clk 0:00:07]}  Rc2 {[%clk 0:00:03]} 41. h4 {[%clk 0:00:08]}  Rg2 {[%clk 0:00:04]} 42. Be5 {[%clk 0:00:08]}  Ra2 {[%clk 0:00:03]} 43. Ra4 {[%clk 0:00:08]}  Bc8 {[%clk 0:00:03]} 44. Bf4 {[%clk 0:00:08]}  Rb2 {[%clk 0:00:03]} 45. Ra5 {[%clk 0:00:08]}  Rb3+ {[%clk 0:00:03]} 46. Kd4 {[%clk 0:00:09]}  f6 {[%clk 0:00:03]} 47. Kc5 {[%clk 0:00:09]}  Rc3+ {[%clk 0:00:03]} 48. Kd6 {[%clk 0:00:09]}  Rb3 {[%clk 0:00:03]} 49. Ke7 {[%clk 0:00:09]}  Rb7+ {[%clk 0:00:02]} 50. Kd8 {[%clk 0:00:10]}  Be6 {[%clk 0:00:02]} 51. Rxa6 {[%clk 0:00:10]}  Bc4 {[%clk 0:00:03]} 52. Rc6 {[%clk 0:00:09]}  Bb5 {[%clk 0:00:03]} 53. Rd6 {[%clk 0:00:09]}  Ra7 {[%clk 0:00:03]} 54. Be5 {[%clk 0:00:08]}  Kf7 {[%clk 0:00:03]} 55. Rxf6+ {[%clk 0:00:08]}  Kg8 {[%clk 0:00:03]} 56. Rxf5 {[%clk 0:00:07]}  Rxa3 {[%clk 0:00:02]} 57. Rxh5 {[%clk 0:00:07]}  Kf7 {[%clk 0:00:02]} 58. Kc7 {[%clk 0:00:06]}  Bd3 {[%clk 0:00:02]} 59. Rg5 {[%clk 0:00:06]}  Ke6 {[%clk 0:00:01]} 60. h5 {[%clk 0:00:06]}  Ra5 {[%clk 0:00:02]} 61. Bf4 {[%clk 0:00:02]}  Rxg5 {[%clk 0:00:02]} 62. Bxg5 {[%clk 0:00:02]}  Be2 {[%clk 0:00:02]} 63. h6 {[%clk 0:00:03]}  Kf7 {[%clk 0:00:03]} 64. Kd6 {[%clk 0:00:02]}  Kg6 {[%clk 0:00:03]} 65. Bf4 {[%clk 0:00:03]}  Kh7 {[%clk 0:00:04]} 66. Ke7 {[%clk 0:00:04]}  Bd3 {[%clk 0:00:04]} 67. Kf6 {[%clk 0:00:04]}  Bg6 {[%clk 0:00:05]} 68. g4 {[%clk 0:00:04]} 1/2-1/2


[Site "https://www.chess.com"]

[Event "Titled Tuesday Blitz January 17 Late 2023"]
[White "Sadhwani, Raunak"]
[Black "Rasulov, Vugar"]
[WhiteFideId "35093487"]
[BlackFideId "13402390"]
[WhiteElo "2627"]
[BlackElo "2523"]
[Result "0-1"]
[Round "09"]
[TimeControl "180+2"]
[Date "2023.01.17"]
[WhiteClock "0:00:04"]
[BlackClock "0:00:05"]

1. c4 {[%clk 0:03:00]}  Nf6 {[%clk 0:02:59]} 2. Nc3 {[%clk 0:03:00]}  e6 {[%clk 0:03:00]} 3. Nf3 {[%clk 0:02:59]}  d5 {[%clk 0:03:00]} 4. d4 {[%clk 0:03:00]}  c5 {[%clk 0:02:57]} 5. cxd5 {[%clk 0:02:59]}  exd5 {[%clk 0:02:58]} 6. g3 {[%clk 0:02:46]}  Nc6 {[%clk 0:02:58]} 7. Bg2 {[%clk 0:02:47]}  Be7 {[%clk 0:02:58]} 8. O-O {[%clk 0:02:47]}  O-O {[%clk 0:02:59]} 9. Bf4 {[%clk 0:02:45]}  Bg4 {[%clk 0:02:52]} 10. dxc5 {[%clk 0:02:42]}  d4 {[%clk 0:02:42]} 11. Na4 {[%clk 0:02:41]}  Nd5 {[%clk 0:02:42]} 12. Bd2 {[%clk 0:02:37]}  Bf6 {[%clk 0:02:40]} 13. h3 {[%clk 0:02:33]}  Bf5 {[%clk 0:02:29]} 14. Qb3 {[%clk 0:02:25]}  Rb8 {[%clk 0:02:13]} 15. Rfd1 {[%clk 0:02:04]}  Re8 {[%clk 0:01:47]} 16. e3 {[%clk 0:01:51]}  Be6 {[%clk 0:01:38]} 17. Qa3 {[%clk 0:01:51]}  dxe3 {[%clk 0:01:33]} 18. Bxe3 {[%clk 0:01:52]}  Qe7 {[%clk 0:01:32]} 19. Bd4 {[%clk 0:01:44]}  Rbd8 {[%clk 0:01:24]} 20. Bxf6 {[%clk 0:01:10]}  Qxf6 {[%clk 0:01:25]} 21. Rd2 {[%clk 0:01:06]}  Ndb4 {[%clk 0:01:17]} 22. Rad1 {[%clk 0:01:02]}  Nxa2 {[%clk 0:01:06]} 23. Rd6 {[%clk 0:00:54]}  Nab4 {[%clk 0:00:57]} 24. Qe3 {[%clk 0:00:54]}  h6 {[%clk 0:00:55]} 25. Nc3 {[%clk 0:00:54]}  a5 {[%clk 0:00:40]} 26. R1d2 {[%clk 0:00:46]}  Qg6 {[%clk 0:00:27]} 27. Kh2 {[%clk 0:00:37]}  Qf6 {[%clk 0:00:23]} 28. Ne4 {[%clk 0:00:36]}  Qe7 {[%clk 0:00:24]} 29. Nc3 {[%clk 0:00:31]}  Rxd6 {[%clk 0:00:18]} 30. cxd6 {[%clk 0:00:32]}  Qd7 {[%clk 0:00:19]} 31. Qf4 {[%clk 0:00:30]}  f6 {[%clk 0:00:17]} 32. Ne4 {[%clk 0:00:24]}  Nd5 {[%clk 0:00:16]} 33. Qh4 {[%clk 0:00:24]}  b6 {[%clk 0:00:16]} 34. Nd4 {[%clk 0:00:22]}  Nxd4 {[%clk 0:00:15]} 35. Rxd4 {[%clk 0:00:23]}  Bf7 {[%clk 0:00:09]} 36. Bf3 {[%clk 0:00:18]}  Re5 {[%clk 0:00:08]} 37. Kg2 {[%clk 0:00:16]}  h5 {[%clk 0:00:07]} 38. Kh2 {[%clk 0:00:08]}  Kf8 {[%clk 0:00:07]} 39. g4 {[%clk 0:00:07]}  g5 {[%clk 0:00:07]} 40. Qg3 {[%clk 0:00:07]}  h4 {[%clk 0:00:08]} 41. Qg1 {[%clk 0:00:08]}  Kg7 {[%clk 0:00:03]} 42. Qc1 {[%clk 0:00:07]}  Rxe4 {[%clk 0:00:03]} 43. Bxe4 {[%clk 0:00:06]}  Qxd6+ {[%clk 0:00:04]} 44. Kg1 {[%clk 0:00:04]}  Qe5 {[%clk 0:00:04]} 45. Qd2 {[%clk 0:00:04]}  Nf4 {[%clk 0:00:05]} 46. Bg2 {[%clk 0:00:04]}  Qxd4 {[%clk 0:00:05]} 0-1


[Site "https://www.chess.com"]